Cogmind - Beta 13 @@@ ROGUE MODE // 2024.05.11 @ 16:32:09 Player: Blanco! Result: Destroyed by G-47 Trooper with Particle Gun Performance ------------- Evolutions (2) 1000 Regions Visited (4) 800 Robots Destroyed (60) 300 Value Destroyed (1396) 1396 Prototype IDs (0) 0 Alien Tech Used (0) 0 Bonus (0) 0 TOTAL SCORE: 3496 Bonus ------- None Cogmind --------- Core Integrity 0/550 Matter 42/300 Energy 100/100 System Corruption 14% Temperature Cool (9) Movement Core (700) Ox13 Location -8/Materials Parts ------- > --- POWER (2) -------- (None) > --- PROPULSION (2) --- (None) > --- UTILITY (4) ------ High-capacity Storage Unit > --- WEAPON (3) ------- (None) > --- INVENTORY (20) --- Heat Sink Small Storage Unit High-capacity Matter Pod (125) Hardlight Generator Peak State ------------ > --- POWER ------------ Ion Engine Light Ion Engine > --- PROPULSION ------- Subdweller Monowheel > --- UTILITY ---------- High-capacity Storage Unit Compact Battery ECM Suite Reaction Control System > --- WEAPON ----------- Small Laser Assault Rifle Light Cannon > --- INVENTORY -------- Ion Engine Aluminum Leg Aluminum Leg Heat Sink Small Storage Unit High-capacity Matter Pod Hardened Light Armor Plating Improved Light Armor Plating Reflective Plating Hardlight Generator Light Assault Rifle Grenade Launcher Grenade Launcher Improved Grenade Launcher Improved Grenade Launcher Improved Grenade Launcher Improved Grenade Launcher [Rating: 18] Favorites ----------- Power Light Ion Engine Engine Light Ion Engine Propulsion Aluminum Leg Leg Aluminum Leg Wheel Compact Wheel Utility High-capacity Storage Unit Device Structural Scanner Storage High-capacity Storage Unit Protection Hardened Light Armor Plating Weapon Assault Rifle Energy Gun EM Pulse Gun Ballistic Gun Assault Rifle Ballistic Cannon Light Cannon Launcher Grenade Launcher Build | -11 -10 -10 -10 -8 ------- Run | Yrd Mat Min Sub Mat Slots Evolved 4 | . . . . 4 Power 1 | . . . . 1 Propulsion . | . . . . . Utility 2 | . . . . 2 Weapon 1 | . . . . 1 Parts Attached 62 | 8 9 8 2 35 Power 11 | 1 . 2 . 8 Engine 11 | 1 . 2 . 8 Core . | . . . . . Reactor . | . . . . . Propulsion 14 | 5 1 3 1 4 Treads . | . . . . . Leg 7 | 3 1 . . 3 Wheel 7 | 2 . 3 1 1 Hover . | . . . . . Flight . | . . . . . Utility 18 | . 6 . 1 11 Device 9 | . 3 . . 6 Storage 4 | . 3 . . 1 Processor . | . . . . . Hackware . | . . . . . Protection 5 | . . . 1 4 Artifact . | . . . . . Weapon 19 | 2 2 3 . 12 Energy Gun 4 | 1 . 1 . 2 Energy Cannon . | . . . . . Ballistic Gun 3 | 1 . . . 2 Ballistic Cannon 3 | . 1 1 . 1 Launcher 9 | . 1 1 . 7 Special Weapon . | . . . . . Impact Weapon . | . . . . . Slashing Weapon . | . . . . . Piercing Weapon . | . . . . . Special Melee Weapon . | . . . . . Unidentified Prototypes . | . . . . . Parts Lost 33 | . . . 1 32 Power 5 | . . . . 5 Propulsion 6 | . . . 1 5 Utility 8 | . . . . 8 Weapon 14 | . . . . 14 Highest Loss Streak 12 | . . . 1 12 To Critical Strikes . | . . . . . Average Slot Usage (%) 89 | . 95 100 98 68 Engine 12 | . 14 14 14 7 Leg 15 | . 27 3 . 4 Wheel 7 | . . 24 26 6 Device 8 | . 8 14 12 6 Storage 14 | . 16 14 14 9 Protection 2 | . . . 1 11 Energy Gun 2 | . . 8 . 2 Ballistic Gun 9 | . 14 1 . 7 Ballistic Cannon 7 | . 5 16 14 4 Launcher 6 | . 7 1 14 8 Naked Turns . | . . . . . Heaviest Build 81 | 7 52 53 55 81 Greatest Support 36 | 20 20 26 30 36 Greatest Overweight (x) 19 | . 2 2 2 19 Average Overweight (x) 1 | . 1 1 1 2 Largest Inventory Capacity 20 | 5 20 20 20 20 Average Capacity 18 | 5 17 20 20 20 Most Carried 19 | 5 9 18 19 18 Average Carried 8 | 1 5 13 17 9 Final Capacity 20 | 5 20 20 20 20 Final Carried 18 | 4 9 18 17 4 Class Distribution -------------------- 83% | Mutant 12% | Tank Dominant Class ---------------- Mutant | -10/Materials Mutant | -10/Mines Mutant | -10/Subcaves Tank | -8/Materials Resources | -11 -10 -10 -10 -8 ----------- Run | Yrd Mat Min Sub Mat Matter Collected 1371 | 251 236 294 32 558 Remotely . | . . . . . Salvage Created 1356 | 39 294 203 121 699 Parts 90 | 2 13 16 8 51 Haulers Intercepted 1 | . 1 . . . Recyclers Shooed 5 | . 1 . . 4 Parts Field Recycled . | . . . . . Retrieved Matter . | . . . . . Parts Self-Destructed 1 | . . . 1 . Prevented . | . . . . . Kills | -11 -10 -10 -10 -8 ------- Run | Yrd Mat Min Sub Mat Combat Hostiles Destroyed 40 | 1 8 7 3 21 Guns 5 | 1 . 1 . 3 Cannons 14 | . . 6 2 6 AOE 21 | . 8 . 1 12 Classes Destroyed 11 | 1 5 . 1 4 Worker 4 | . 1 . . 3 Builder 6 | . . . . 6 Hauler 1 | . 1 . . . Recycler 5 | . 2 . . 3 Watcher 4 | . 1 . . 3 Swarmer 16 | . 5 3 . 8 Grunt 18 | 1 3 4 . 10 Brawler 1 | . . . . 1 Duelist 1 | . . . . 1 Sentry 1 | . . . . 1 Subdweller 3 | . . . 3 . Best Kill Streak 8 | 1 6 3 2 8 Combat Bots Only 6 | 1 3 3 2 6 Max Kills in Single Turn 3 | 1 2 1 1 3 Gunslinging . | . . . . . Exploded 3 | . 2 . 1 3 Melee . | . . . . . Uniques/NPCs Destroyed . | . . . . . Combat | -11 -10 -10 -10 -8 -------- Run | Yrd Mat Min Sub Mat Hostile Shots Fired 313 | 3 16 29 18 247 Missed 109 | 2 6 9 7 85 Damage Taken 3445 | 11 142 228 276 2788 Core 631 | . 8 34 24 565 Absorbed by Shields 4 | . . . . 4 Ignored by Resistances 32 | . . . . 32 Regen/Repaired (Parts) 10 | . 10 . . . Core Remaining (%) 86 | 100 . . 73 . Volleys Fired 77 | 2 12 14 4 45 Largest 3 | 2 2 2 2 3 Hottest 109 | 70 55 75 72 109 Shots Fired 178 | 4 25 28 8 113 Gun 86 | 4 13 14 . 55 Cannon 45 | . 1 14 4 26 Launcher 47 | . 11 . 4 32 Special . | . . . . . Kinetic 102 | 2 14 20 4 62 Thermal 15 | 2 . . . 13 Explosive 47 | . 11 . 4 32 Electromagnetic 14 | . . 8 . 6 Robot Hit Streak 9 | 1 7 9 2 7 Robot Miss Streak 6 | 1 4 6 1 5 Penetration Max . | . . . . . Secondary Targets . | . . . . . Shots Hit Robots 102 | 2 15 16 4 65 Core Hits 107 | 2 22 9 2 72 Critical Kills . | . . . . . Critical Parts Destroyed . | . . . . . Critical Strikes 4 | . . 1 2 1 Blast 4 | . . 1 2 1 Melee Attacks . | . . . . . Impact . | . . . . . Slashing . | . . . . . Piercing . | . . . . . Sneak Attacks . | . . . . . Combat Hostiles . | . . . . . Follow-up Attacks . | . . . . . Damage Inflicted 4286 | 24 960 247 267 2788 Guns 630 | 24 109 90 . 407 Cannons 526 | . . 157 52 317 Explosions 3119 | . 840 . 215 2064 Melee . | . . . . . Ramming 11 | . 11 . . . Kinetic 945 | 24 109 167 52 593 Thermal 186 | . . . . 186 Explosive 3021 | . 840 . 215 1966 Electromagnetic 123 | . . 80 . 43 Impact . | . . . . . Slashing . | . . . . . Piercing . | . . . . . Highest Corruption 14 | . 1 1 1 14 Average Corruption 1 | . 1 1 1 3 Corruption Purged . | . . . . . Corruption Blocked . | . . . . . Effects 18 | . 6 2 1 9 Message Errors 4 | . 1 . . 3 Matter Fused 3 | . 1 1 . 1 Heat Flow Errors 1 | . 1 . . . Energy Discharges 3 | . 1 . . 2 Parts Rejected 1 | . . . 1 . Parts Fused 2 | . 1 . . 1 Data Loss (minor) 3 | . . 1 . 2 Misfires 1 | . 1 . . . Overload Shots . | . . . . . Overflow Damage 55 | . 8 . . 47 Projectiles . | . . . . . Explosions 55 | . 8 . . 47 Melee . | . . . . . Knockbacks 4 | . . 1 . 3 Impact . | . . . . . Kinetic 4 | . . 1 . 3 Secondary . | . . . . . Self-Inflicted Damage 328 | . 44 . 39 245 Shots 12 | . 2 . 1 9 Rammed . | . . . . . Targets Rammed 3 | 1 2 . . . Kicked 3 | 1 2 . . . Crushed . | . . . . . Highest Temperature 336 | 18 190 70 . 336 Average Temperature 70 | 10 75 30 . 79 Received Heat Transfer 1104 | 6 18 39 27 1014 Siege Activations . | . . . . . Robots Corrupted . | . . . . . Combat Hostiles . | . . . . . Parts Fried . | . . . . . Impact Corruptions . | . . . . . Robots Melted . | . . . . . Combat Hostiles . | . . . . . Parts Melted . | . . . . . Heat Transferred 300 | . . . . 300 Parts Sabotaged . | . . . . . Parts Stolen . | . . . . . Parts Stripped . | . . . . . Power Chain Reactions . | . . . . . Alert | -11 -10 -10 -10 -8 ------- Run | Yrd Mat Min Sub Mat Peak Influence 405 | 20 219 175 . 405 Initial 13 | . 13 5 . . Average 127 | 2 64 100 . 297 Maximum Alert Level 2 | . 1 . . 2 Low Security (%) 72 | 100 88 100 . 13 Level 1 27 | . 11 . . 86 Level 2 . | . . . . . Level 3 . | . . . . . Level 4 . | . . . . . Level 5 . | . . . . . High Security . | . . . . . Max Security . | . . . . . Squads Dispatched 6 | . 1 . . 5 Investigation 3 | . 1 . . 2 Extermination . | . . . . . Reinforcement . | . . . . . Assault . | . . . . . Garrison 3 | . . . . 3 Intercept . | . . . . . Searches Triggered . | . . . . . Construction Impeded . | . . . . . Haulers Reinforced . | . . . . . Active Scanning Responses . | . . . . . Cargo Convoy Interrupts . | . . . . . Stealth | -11 -10 -10 -10 -8 --------- Run | Yrd Mat Min Sub Mat Distress Signals 3 | . 1 . . 2 Communications Jammed . | . . . . . Distress Signals . | . . . . . Times Spotted 67 | 1 12 7 14 33 Peak Tracking Total 8 | 1 4 3 8 6 Tactical Retreats 1 | . 1 . . . Traps | -11 -10 -10 -10 -8 ------- Run | Yrd Mat Min Sub Mat Traps Triggered 4 | . 1 1 . 2 Indirectly . | . . . . . Trap Hack Attempts . | . . . . . Triggered . | . . . . . Disarmed . | . . . . . Reprogrammed . | . . . . . Reused . | . . . . . Traps Extracted . | . . . . . Installed . | . . . . . Triggered . | . . . . . Machines | -11 -10 -10 -10 -8 ---------- Run | Yrd Mat Min Sub Mat Machines Disabled 5 | . 1 . . 4 Max in Single Turn 2 | . 1 . . 2 Machines Repaired . | . . . . . Machines Dismantled . | . . . . . Machines Sabotaged . | . . . . . Overloaded Fab Kills . | . . . . . Hacking | -11 -10 -10 -10 -8 --------- Run | Yrd Mat Min Sub Mat Machines Accessed 10 | . 8 1 . 1 Terminals 7 | . 6 . . 1 Fabricators . | . . . . . Repair Stations 1 | . 1 . . . Recycling Units 1 | . 1 . . . Scanalyzers . | . . . . . Garrison Access . | . . . . . Total Hacks 24 | . 22 1 . 1 Successful 13 | . 11 1 . 1 Failed 10 | . 10 . . . Catastrophic 2 | . 2 . . . Database Lockouts 1 | . 1 . . . Manual . | . . . . . Terminals 15 | . 14 . . 1 Fabricators . | . . . . . Repair Stations 4 | . 4 . . . Recycling Units 4 | . 4 . . . Scanalyzers . | . . . . . Garrison Access . | . . . . . Terminal Hacks 8 | . 6 1 . 1 Record 7 | . 6 . . 1 Open Door 1 | . . 1 . . Fabricator Hacks . | . . . . . Repair Station Hacks 2 | . 2 . . . Scan Component 1 | . 1 . . . Repair 1 | . 1 . . . Recycling Unit Hacks 3 | . 3 . . . Recycle Component 2 | . 2 . . . Process 1 | . 1 . . . Scanalyzer . | . . . . . Garrison Access Hacks . | . . . . . Unauthorized Hacks . | . . . . . Terminals . | . . . . . Fabricators . | . . . . . Repair Stations . | . . . . . Recycling Units . | . . . . . Scanalyzers . | . . . . . Garrison Access . | . . . . . Data Cores Recovered . | . . . . . Used . | . . . . . Hacking Detections 6 | . 5 . . 1 Full Trace Events 3 | . 3 . . . Feedback Events . | . . . . . Feedback Blocked . | . . . . . Robot Schematics Acquired . | . . . . . Robots Built . | . . . . . Authchips . | . . . . . Time . | . . . . . Total Robot Build Rating . | . . . . . Part Schematics Acquired . | . . . . . Parts Built . | . . . . . Authchips . | . . . . . Time . | . . . . . Total Part Build Rating . | . . . . . Parts Repaired 1 | . 1 . . . Time 26 | . 26 . . . Parts Recycled 2 | . 2 . . . Recycled Matter 74 | . 74 . . . Retrieved Matter . | . . . . . Retrieved Components . | . . . . . Parts Scanalyzed . | . . . . . Part Schematics Acquired . | . . . . . Parts Damaged . | . . . . . Bothacking | -11 -10 -10 -10 -8 ------------ Run | Yrd Mat Min Sub Mat Used RIF Installer . | . . . . . Robots Hacked . | . . . . . Non-combat . | . . . . . Combat . | . . . . . Robot Hacks Applied . | . . . . . Relay Couplers Released . | . . . . . Fabnet Peak Effective % . | . . . . . Robots Rewired . | . . . . . Allies Hacked . | . . . . . Hacks Repelled . | . . . . . Allies | -11 -10 -10 -10 -8 -------- Run | Yrd Mat Min Sub Mat Total Allies . | . . . . . Largest Group . | . . . . . Highest-Rated Group . | . . . . . Highest-Rated Ally . | . . . . . Total Orders . | . . . . . Ally Attacks . | . . . . . Total Damage . | . . . . . Kills . | . . . . . Allies Corrupted . | . . . . . Allies Melted . | . . . . . Intel | -11 -10 -10 -10 -8 ------- Run | Yrd Mat Min Sub Mat Robot Analysis Total . | . . . . . Derelict Logs Recovered 3 | . . 3 . . Drone Launches . | . . . . . Drone Recoveries . | . . . . . Exploration | -11 -10 -10 -10 -8 ------------- Run | Yrd Mat Min Sub Mat Turns Passed 2984 | 169 1407 566 107 735 Spaces Moved 1433 | 72 594 444 73 250 Core 31 | 19 . . . 12 Treads . | . . . . . Legs 720 | 48 594 16 . 62 Wheels 682 | 5 . 428 73 176 Hover . | . . . . . Flight . | . . . . . Fastest Speed 50 | 50 120 105 107 117 Average Speed 176 | 98 225 112 113 215 Slowest Speed 1000 | 120 260 260 130 1000 Overloaded Moves . | . . . . . Propulsion Burnouts . | . . . . . Robots Hopped . | . . . . . Cave-ins Triggered 1 | . . . . 1 Exploration Rate (%) 37 | 7 80 73 6 21 Regions Visited 4 Branch Regions 2 Pre-discovered Areas 1 | . . 1 . . Known Exits Taken . | . . . . . Unknown Exits Taken 4 | 1 1 1 1 . Scrap Searched 1 | . . 1 . . Spaces Dug . | . . . . . Terrain Destroyed 244 | . 68 . 35 141 Melee . | . . . . . Projectile . | . . . . . AOE 244 | . 68 . 35 141 Terrain Rammed . | . . . . . Walls Destroyed . | . . . . . Machines Disabled . | . . . . . Actions | -11 -10 -10 -10 -8 --------- Run | Yrd Mat Min Sub Mat Total 1740 | 167 637 487 91 358 Wait 91 | 72 3 4 2 10 Move 1429 | 71 593 443 72 250 Hop . | . . . . . Pick Up 52 | 10 12 11 3 16 Fast Attach . | . . . . . Attach 52 | 8 8 6 1 29 Detach 13 | 2 4 6 . 1 Swap 10 | . 1 2 1 6 Drop 9 | 1 2 1 4 1 Fire 77 | 2 12 14 4 45 Melee . | . . . . . Ram . | . . . . . Kick 3 | 1 2 . . . Crush . | . . . . . Escape Stasis . | . . . . . Rewire 4 | . . . 4 . Trap . | . . . . . Miscellaneous . | . . . . . Route ------- -11/Scrapyard -10/Materials (discovered 4 exits: [*Mat x2] / *Min x2) -10/Mines (discovered 2 exits: [*Mat] / [*Sub]) -10/Subcaves -8/Materials (discovered 1 exit: [*Fac]) History --------- Turn | Location | Event 2 | -11/Scrapyard | Met Revision 17 143 | -11/Scrapyard | Discovered new exit (range 8) 170 | -11/Scrapyard | Entered Materials 206 | -10/Materials | Discovered new exit (range 16) 257 | -10/Materials | Central database locked down 301 | -10/Materials | Repaired Aluminum Leg 327 | -10/Materials | Build established: Mutant 447 | -10/Materials | Discovered new exit (range 15) 808 | -10/Materials | Discovered new exit (range 10) 1564 | -10/Materials | Discovered new exit (range 5) 1577 | -10/Materials | Entered Mines 1680 | -10/Mines | Received a Rocket Launcher from a helpful Derelict 1698 | -10/Mines | Learned location of Zion (-7) 1829 | -10/Mines | Learned 4 Materials zone layouts 1831 | -10/Mines | Met a Derelict who couldn't figure out how to use a Trap Extractor 1996 | -10/Mines | A weapon hastily lodged in a ceiling crevice suddenly fell to the ground 2054 | -10/Mines | Discovered new exit (range 12) 2124 | -10/Mines | Discovered new exit (range 16) 2143 | -10/Mines | Entered Subcaves 2228 | -10/Subcaves | Discovered new exit (range 7) 2245 | -10/Subcaves | Ambushed by swarm of Subdwellers 2246 | -10/Subcaves | Ambushed by Subdwellers from Twisted Machinery 2246 | -10/Subcaves | Ambushed by Subdwellers from Twisted Machinery 2246 | -10/Subcaves | Ambushed by Subdwellers from Twisted Machinery 2246 | -10/Subcaves | Ambushed by Subdwellers from Twisted Machinery 2250 | -10/Subcaves | Entered Materials 2250 | -8/Materials | Evolved 4 slots: Power x1, Utility x2, Weapon x1 2482 | -8/Materials | Lost 6 parts (1p1n2u2w) 2582 | -8/Materials | Garrison activated, responded to threat 2681 | -8/Materials | Lost 12 parts (3p1n3u5w) 2771 | -8/Materials | Crushed by falling debris 2838 | -8/Materials | Lost 5 parts (2n1u2w) 2867 | -8/Materials | Discovered new exit (range 13) 2942 | -8/Materials | System corruption reached 10% 2950 | -8/Materials | Core integrity fell below 50% 2971 | -8/Materials | Core integrity fell below 20% 2985 | -8/Materials | Destroyed by G-47 Trooper with Particle Gun Last Messages --------------- 02959_ K-01 Serf collects debris. 02959_ Knocked back. 02961_ U-05 Engineer lays Concrete. 02962_ U-05 Engineer builds a Wall. 02964_ K-01 Serf collects debris. 02966_ U-05 Engineer lays Concrete. 02969_ System corrupted: Energy discharge (-38). 02969_ Acquired Lgt. Ion Engine. 02971_ Hrd. Light Armor Plating destroyed. 02973_ B-36 Bruiser destroyed. 02973_ K-01 Serf collects debris. 02974_ U-05 Engineer builds a Wall. 02976_ K-01 Serf collects debris. 02978_ U-05 Engineer lays Concrete. 02980_ Lgt. Ion Engine destroyed. 02981_ K-01 Serf collects debris. 02981_ U-05 Engineer lays Concrete. 02982_ K-01 Serf collects debris. 02984_ U-05 Engineer lays Concrete. [Achievement: First Step to Greatness] Map ----- +----------------------------------------------------+ | ?## #????# #??# | | ?####+######?# #?## ###+####### | | ? #?# """ """ #?## # #? | | ?""" #?# """ """ #?## # #? | | ?""" #?# """ """ #?## # #? | | ?""" #?###########?## #% "" #? | | ? #?????????????## + """ #? | | ? #?????????????## # """ =#? | | ? #??????????????# # "" #? | | ? ##############??????????######### # #? | | ?### # #???????????# # # ! #? | | ? # #???????????# # ##########? | | ? # """ #???????????# + #?????????? | | ?### # """ #???????????# ! # #?????????? | | ???## ## """ #???????????# !! # #?????????? | | ?#### ## #????#####??# # #?????????? | | ?# ##+######?#### ########### #?????????? | | ? ######### """ #?# #?????????? | | ? % "Y" ### ##????????? | | ??????????????????### kg " " # # ##????????? | | ???????????######## # ##????????? | | ??????????#[ # g% * ## ##????????? | | ??????????# /##+####### #????????? | | ??????????# # !| #????????? | | ??????????? """ % + k= #### #????? | | ????????????""" """ # *%@ #????? | | ?????????????"" G" # u ###;######+######## #????? | | ?????????????? """?# ## #????????? | | ??????????????? ?# ## #????????? | | ????????????????##??# ## # #????????? | | ????????????????????# ## #????????? | | ????????????????????# ## " + ???????? | | ????????????????????# ## " ####??????? | | ????????????????????+ ## # #?????????? | | ????????????????????# ## # !! #?????????? | | ????????????????????# < ?# # ! #?????????? | | ????????????????????# ?###############?????????? | | ????????????????????####?????????????????????????? | | ?????????????????????????????????????????????????? | | ?????????????????????????????????????????????????? | | ?????????????????????????????????????????????????? | | ?????????????????????????????????????????????????? | | ?????????????????????????????????????????????????? | | ?????????????????????????????????????????????????? | | | | | | | | | | | | | +----------------------------------------------------+ Best States ------------- Heat Dissipation 41 Energy Generation 15 Energy Capacity 475 Matter Stores 321 Matter Capacity 500 Sight Range 16 Terrain Scan Density 10 ECM Strength 2 Armor Coverage 950 Resistance: TH 10 Evasion (%) 55 Item Schematics ----------------- None Robot Schematics ------------------ None Fabricated ------------ Nothing Alien Tech Used ----------------- None Achievements -------------- First Step to Greatness Hey, That's Mine! Let's See Who's Tougher Loot Pinata One Hack Too Far Oops Part-time Mechanic Remodeling Storm Trooper System Compromised Troublemaker Unlikely Earthworm Challenges ------------ None Game ------ Seed BombHackingGreatsword Manual? 0 Play Time 01:26:34 Cumulative 1.3 hours Start 2024.05.11 @ 15:01:23 End 2024.05.11 @ 16:32:09 Sessions 1 Manual Loads 0 Difficulty Rogue Special Mode None Game No. 1 Rogue 1 Adventurer 0 Explorer 0 Win Type - Total 0 Types 0/0/0/0/0/0/0/0/0 Lore% 0 Gallery% 3 Achievement% 4 Wizard Run 0 Options --------- Layout 1 ASCII 0 Keyboard 0 Movement Arrows Keybinds 0 Fullscreen 1 Font 24/Smallcaps Map View 50x35 Zoom Use 0% Tactical HUD 1 Map Filters NONE Filters NONE Steam 1 RUN: d88762b8-3599-45d6-8f61-f181b0a050e7